Cogmind - Beta 14 --- EXPLORER MODE // 2024.10.03 @ 22:21:11 Player: Cwaftwer Result: Destroyed by G-47 Trooper with Particle Gun Performance ------------- Evolutions (2) 1000 Regions Visited (5) 1000 Robots Destroyed (120) 600 Value Destroyed (3028) 3028 Prototype IDs (15) 300 Alien Tech Used (0) 0 Bonus (298) 298 TOTAL SCORE: 6226 Bonus ------- High Alert Combat Kills 38 Follower Combat Kills 60 Entered Garrisons 200 Cogmind --------- Core Integrity 0/550 Matter 290/300 Energy 100/100 System Corruption 2% Temperature Cool (18) Movement Core (700) Ox13 Location -8/Garrison Parts ------- > --- POWER (1) -------- (None) > --- PROPULSION (4) --- (None) > --- UTILITY (5) ------ High-capacity Storage Unit Targeting Computer > --- WEAPON (2) ------- (None) > --- INVENTORY (20) --- Improved Heat Sink Improved Heat Sink High-capacity Storage Unit Compact Battery (200) Large Matter Pod (150) Light Armor Plating Light Armor Plating Light Armor Plating Hardened Light Armor Plating Improved Light Armor Plating Shield Generator System Shield Heavy Particle Gun Concussive RPG (1) Plasma Cutter Heavy Flail Peak State ------------ > --- POWER ------------ Cooled Ion Engine > --- PROPULSION ------- Aluminum Leg Aluminum Leg Aluminum Leg Titanium Leg > --- UTILITY ---------- High-capacity Storage Unit Targeting Computer Light Armor Plating Hacking Suite Hacking Suite > --- WEAPON ----------- Heavy Particle Gun Heavy Particle Gun > --- INVENTORY -------- Improved Ion Engine Improved Heat Sink Improved Heat Sink Improved Heat Sink High-capacity Storage Unit Compact Battery Large Matter Pod Light Armor Plating Light Armor Plating Hardened Light Armor Plating Improved Light Armor Plating Shield Generator Heavy Particle Gun Plasma Cutter Heavy Flail [Rating: 29] Favorites ----------- Power Cooled Ion Engine Engine Cooled Ion Engine Propulsion Aluminum Leg Leg Aluminum Leg Utility Targeting Computer Device Heat Sink Storage High-capacity Storage Unit Processor Targeting Computer Hackware Hacking Suite Protection Power Shielding Weapon Particle Cannon Energy Gun Heavy Particle Gun Energy Cannon Particle Cannon Ballistic Gun Enhanced Autogun Launcher Rocket Launcher Special Weapon Plasma Cutter Impact Weapon Heavy Flail Build | -11 -10 -9 -9 -8 -8 ------- Run | Yrd Mat Mat Min Mat Gar Slots Evolved 5 | . 1 2 . 2 . Power . | . . . . . . Propulsion 2 | . . 1 . 1 . Utility 3 | . 1 1 . 1 . Weapon . | . . . . . . Parts Attached 63 | 6 10 8 3 32 4 Power 4 | 1 . 1 . 1 1 Engine 4 | 1 . 1 . 1 1 Core . | . . . . . . Reactor . | . . . . . . Propulsion 19 | 2 3 3 1 9 1 Treads . | . . . . . . Leg 19 | 2 3 3 1 9 1 Wheel . | . . . . . . Hover . | . . . . . . Flight . | . . . . . . Utility 12 | 2 2 1 . 6 1 Device 4 | . 1 . . 2 1 Storage 1 | . . 1 . . . Processor 1 | . 1 . . . . Hackware 2 | . . . . 2 . Protection 4 | 2 . . . 2 . Artifact . | . . . . . . Weapon 28 | 1 5 3 2 16 1 Energy Gun 6 | 1 3 . . 2 . Energy Cannon 12 | . 2 2 2 6 . Ballistic Gun 1 | . . . . 1 . Ballistic Cannon . | . . . . . . Launcher 6 | . . . . 5 1 Special Weapon 1 | . . . . 1 . Impact Weapon 2 | . . 1 . 1 . Slashing Weapon . | . . . . . . Piercing Weapon . | . . . . . . Special Melee Weapon . | . . . . . . Unidentified Prototypes 1 | . . . . 1 . Parts Lost 21 | . . 2 1 9 9 Power 2 | . . 1 . . 1 Propulsion 10 | . . 1 1 4 4 Utility 7 | . . . . 4 3 Weapon 2 | . . . . 1 1 Highest Loss Streak 6 | . . 1 1 3 6 To Critical Strikes . | . . . . . . Average Slot Usage (%) 95 | . 96 99 99 85 81 Engine 9 | . 12 9 10 7 5 Leg 28 | . 24 29 29 25 23 Device 8 | . 4 10 10 8 . Storage 8 | . . 10 10 8 8 Processor 9 | . 12 10 10 8 8 Protection 10 | . 19 10 10 8 6 Energy Gun 1 | . 18 . . 1 13 Energy Cannon 15 | . 3 19 20 9 . Impact Weapon 1 | . . . . 3 . Peak Build Rating 29 | 6 8 16 17 29 29 Average Rating 16 | 4 7 12 16 21 24 On Entrance 12 | . 6 8 16 17 29 Naked Turns . | . . . . . . Heaviest Build 61 | 9 13 57 58 61 57 Greatest Support 47 | 20 20 30 30 47 47 Greatest Overweight (x) 14 | 1 . 2 1 2 14 Average Overweight (x) . | . . 1 1 1 1 Largest Inventory Capacity 20 | 5 5 20 20 20 20 Average Capacity 18 | 5 5 19 20 20 20 Most Carried 20 | 2 5 20 20 20 17 Average Carried 16 | 1 2 14 19 17 16 Final Capacity 20 | 5 5 20 20 20 20 Final Carried 20 | 2 5 20 20 17 16 Class Distribution -------------------- 98% | Hacker-Mutant Dominant Class ---------------- Hacker-Mutant | -10/Materials Hacker-Mutant | -9/Materials Hacker-Mutant | -9/Mines Hacker-Mutant | -8/Materials Hacker-Mutant | -8/Garrison Resources | -11 -10 -9 -9 -8 -8 ----------- Run | Yrd Mat Mat Min Mat Gar Matter Collected 1163 | 227 113 98 30 670 25 Remotely . | . . . . . . Salvage Created 4234 | . 362 1664 552 1463 193 Parts 247 | . 19 110 31 71 16 Haulers Intercepted 12 | . 1 6 . 5 . Recyclers Shooed 3 | . . 1 1 1 . Parts Field Recycled . | . . . . . . Retrieved Matter . | . . . . . . Parts Self-Destructed . | . . . . . . Prevented . | . . . . . . Kills | -11 -10 -9 -9 -8 -8 ------- Run | Yrd Mat Mat Min Mat Gar Combat Hostiles Destroyed 67 | . 5 30 1 23 8 Melee 1 | . . . . 1 . Guns 14 | . 5 . . 2 7 Cannons 40 | . . 26 1 13 . AOE 11 | . . 4 . 6 1 Classes Destroyed 14 | . 5 6 1 1 1 Worker 11 | . 1 1 4 5 . Builder 7 | . . 1 3 3 . Tunneler 2 | . . . 2 . . Hauler 12 | . 1 6 . 5 . Recycler 7 | . 1 1 4 1 . Mechanic 2 | . . 2 . . . Operator 2 | . . 2 . . . Watcher 10 | . 1 5 . 4 . Swarmer 9 | . . 5 . . 4 Cutter 2 | . . . . . 2 Grunt 37 | . 5 15 1 14 2 Brawler 1 | . . . . 1 . Duelist 2 | . . 1 . 1 . Sentry 16 | . . 9 . 7 . Best Kill Streak 14 | . 5 14 5 6 7 Combat Bots Only 7 | . 2 6 1 5 7 Max Kills in Single Turn 8 | . 1 8 1 3 1 Gunslinging . | . . . . . . Exploded 4 | . . 4 . 2 1 Melee 1 | . . . . 1 . Uniques/NPCs Destroyed . | . . . . . . Combat | -11 -10 -9 -9 -8 -8 -------- Run | Yrd Mat Mat Min Mat Gar Hostile Shots Fired 491 | . 40 118 4 163 166 Missed 121 | . 12 33 2 36 38 Damage Taken 3430 | . 223 729 15 1254 1209 Core 839 | . 67 219 . 101 452 Absorbed by Shields 109 | . . . . 109 . Redirected to Shielding 52 | . 6 16 . 30 . Ignored by Resistances 2164 | . 140 453 9 822 740 Core Remaining (%) 72 | 100 73 . 45 . . Volleys Fired 227 | . 28 81 19 86 13 Largest 2 | . 2 2 2 2 2 Hottest 136 | . 90 128 136 136 110 Shots Fired 423 | . 55 160 38 147 23 Gun 97 | . 55 . . 20 22 Cannon 297 | . . 160 38 99 . Launcher 22 | . . . . 21 1 Special 7 | . . . . 7 . Kinetic . | . . . . . . Thermal 401 | . 55 160 38 126 22 Explosive 22 | . . . . 21 1 Electromagnetic . | . . . . . . Robot Hit Streak 60 | . 28 60 27 34 52 Robot Miss Streak 2 | . 1 1 1 2 1 Penetration Max . | . . . . . . Secondary Targets 3 | . 2 . . . 1 Max Gunslinging Chain 1 | . 1 . . . 1 Shots Hit Robots 331 | . 52 113 28 117 21 Core Hits 165 | . 17 58 12 62 16 Critical Kills . | . . . . . . Critical Parts Destroyed 1 | . . . . 1 . Critical Strikes 4 | . 1 . . 2 1 Burn 3 | . 1 . . 1 1 Smash 1 | . . . . 1 . Melee Attacks 21 | . . 14 . 7 . Impact 21 | . . 14 . 7 . Slashing . | . . . . . . Piercing . | . . . . . . Sneak Attacks . | . . . . . . Combat Hostiles . | . . . . . . Follow-up Attacks . | . . . . . . Damage Inflicted 8370 | . 644 3215 594 3395 522 Guns 1347 | . 644 . . 323 380 Cannons 4395 | . . 2221 594 1562 18 Explosions 2285 | . . 993 . 1168 124 Melee 266 | . . . . 266 . Ramming 1 | . . 1 . . . Kinetic . | . . . . . . Thermal 5973 | . 644 2221 594 2134 380 Explosive 2112 | . . 993 . 995 124 Electromagnetic . | . . . . . . Impact 284 | . . . . 266 18 Slashing . | . . . . . . Piercing . | . . . . . . Highest Corruption 2 | . 1 . . 2 2 Average Corruption 1 | . 1 . . 1 2 Corruption Purged . | . . . . . . Corruption Blocked . | . . . . . . Effects 10 | . 1 . . 6 3 Message Errors 3 | . 1 . . 1 1 Matter Fused 2 | . . . . 1 1 Heat Flow Errors 2 | . . . . 1 1 Data Loss (minor) 2 | . . . . 2 . Weapon Failures 1 | . . . . 1 . Overload Shots . | . . . . . . Overflow Damage 316 | . . 125 29 162 . Projectiles 65 | . . 30 29 6 . Explosions 164 | . . 95 . 69 . Melee 87 | . . . . 87 . Knockbacks . | . . . . . . Impact . | . . . . . . Kinetic . | . . . . . . Secondary . | . . . . . . Self-Inflicted Damage 181 | . . 41 . 124 16 Shots 9 | . . 1 . 7 1 Rammed . | . . . . . . Targets Rammed 1 | . . 1 . . . Kicked 1 | . . 1 . . . Crushed . | . . . . . . Highest Temperature 279 | . 222 225 90 279 215 Average Temperature 67 | . 72 53 37 87 106 Received Heat Transfer 2683 | . 198 426 15 928 1116 Siege Activations . | . . . . . . Robots Corrupted 1 | . . . . 1 . Combat Hostiles 1 | . . . . 1 . Parts Fried 2 | . . . . 2 . Impact Corruptions 2 | . . . . 2 . Robots Melted . | . . . . . . Combat Hostiles . | . . . . . . Parts Melted 28 | . 6 8 1 12 1 Heat Transferred 11936 | . 1698 4514 1073 3837 814 Parts Sabotaged . | . . . . . . Parts Stolen . | . . . . . . Parts Stripped . | . . . . . . Power Chain Reactions . | . . . . . . Alert | -11 -10 -9 -9 -8 -8 ------- Run | Yrd Mat Mat Min Mat Gar Peak Influence 441 | . 181 441 73 411 210 Initial 90 | . . 54 27 13 90 Average 90 | . 62 127 14 120 117 Maximum Alert Level 2 | . . 2 . 2 1 Low Security (%) 90 | 100 100 89 100 80 92 Level 1 7 | . . 8 . 17 7 Level 2 1 | . . 1 . 2 . Level 3 . | . . . . . . Level 4 . | . . . . . . Level 5 . | . . . . . . High Security . | . . . . . . Max Security . | . . . . . . Squads Dispatched 6 | . 1 1 . 4 . Investigation 3 | . 1 1 . 1 . Extermination . | . . . . . . Reinforcement 2 | . . . . 2 . Assault . | . . . . . . Garrison 1 | . . . . 1 . Intercept . | . . . . . . Searches Triggered . | . . . . . . Construction Impeded 1 | . . . . 1 . Haulers Reinforced . | . . . . . . Active Scanning Responses . | . . . . . . Cargo Convoy Interrupts . | . . . . . . Stealth | -11 -10 -9 -9 -8 -8 --------- Run | Yrd Mat Mat Min Mat Gar Distress Signals 6 | . 2 1 . 3 . Communications Jammed . | . . . . . . Distress Signals . | . . . . . . Times Spotted 92 | . 8 36 2 32 14 Peak Tracking Total 8 | . 4 8 2 6 7 Tactical Retreats 3 | . 1 . . 2 . Traps | -11 -10 -9 -9 -8 -8 ------- Run | Yrd Mat Mat Min Mat Gar Traps Triggered 11 | . 3 1 . 5 2 Indirectly . | . . . . . . Trap Hack Attempts . | . . . . . . Triggered . | . . . . . . Disarmed . | . . . . . . Reprogrammed . | . . . . . . Reused . | . . . . . . Traps Extracted . | . . . . . . Installed . | . . . . . . Triggered . | . . . . . . Machines | -11 -10 -9 -9 -8 -8 ---------- Run | Yrd Mat Mat Min Mat Gar Machines Disabled 14 | . . 5 1 8 . Max in Single Turn 2 | . . 2 1 2 . Machines Repaired . | . . . . . . Machines Dismantled . | . . . . . . Machines Sabotaged . | . . . . . . Overloaded Fab Kills . | . . . . . . Hacking | -11 -10 -9 -9 -8 -8 --------- Run | Yrd Mat Mat Min Mat Gar Machines Accessed 14 | . 3 6 . 5 . Terminals 11 | . 2 6 . 3 . Fabricators . | . . . . . . Repair Stations 1 | . 1 . . . . Recycling Units 1 | . . . . 1 . Scanalyzers . | . . . . . . Garrison Access 1 | . . . . 1 . Total Hacks 36 | . 8 18 . 10 . Successful 20 | . 4 10 . 6 . Failed 16 | . 4 8 . 4 . Catastrophic 1 | . 1 . . . . Database Lockouts . | . . . . . . Manual 20 | . 3 14 . 3 . Terminals 32 | . 6 18 . 8 . Fabricators . | . . . . . . Repair Stations 2 | . 2 . . . . Recycling Units 1 | . . . . 1 . Scanalyzers . | . . . . . . Garrison Access 1 | . . . . 1 . Terminal Hacks 16 | . 3 9 . 4 . Robot Analysis 1 | . 1 . . . . Prototype ID Bank 12 | . 2 7 . 3 . Terminal Index 1 | . . 1 . . . Locate Traps 1 | . . 1 . . . Zone Layout 1 | . . . . 1 . Fabricator Hacks . | . . . . . . Repair Station Hacks 1 | . 1 . . . . Scan Component 1 | . 1 . . . . Recycling Unit Hacks 1 | . . . . 1 . Report Inventory 1 | . . . . 1 . Scanalyzer . | . . . . . . Garrison Access Hacks 1 | . . . . 1 . Unlock Access 1 | . . . . 1 . Unauthorized Hacks 1 | . . 1 . . . Terminals 1 | . . 1 . . . Search 1 | . . 1 . . . Fabricators . | . . . . . . Repair Stations . | . . . . . . Recycling Units . | . . . . . . Scanalyzers . | . . . . . . Garrison Access . | . . . . . . Data Cores Recovered 2 | . . 2 . . . Used . | . . . . . . Hacking Detections 11 | . 3 6 . 2 . Full Trace Events 2 | . 1 . . 1 . Feedback Events 1 | . 1 . . . . Corruption 1 | . 1 . . . . Feedback Blocked . | . . . . . . Robot Schematics Acquired . | . . . . . . Robots Built . | . . . . . . Authchips . | . . . . . . Time . | . . . . . . Total Robot Build Rating . | . . . . . . Part Schematics Acquired . | . . . . . . Parts Built . | . . . . . . Authchips . | . . . . . . Time . | . . . . . . Total Part Build Rating . | . . . . . . Parts Repaired . | . . . . . . Time . | . . . . . . Parts Recycled . | . . . . . . Recycled Matter . | . . . . . . Retrieved Matter . | . . . . . . Retrieved Components . | . . . . . . Parts Scanalyzed . | . . . . . . Part Schematics Acquired . | . . . . . . Parts Damaged . | . . . . . . Bothacking | -11 -10 -9 -9 -8 -8 ------------ Run | Yrd Mat Mat Min Mat Gar Used RIF Installer . | . . . . . . Robots Hacked . | . . . . . . Non-combat . | . . . . . . Combat . | . . . . . . Robot Hacks Applied . | . . . . . . Relay Couplers Released . | . . . . . . Fabnet Peak Effective % . | . . . . . . Robots Rewired . | . . . . . . Allies Hacked . | . . . . . . Hacks Repelled . | . . . . . . Allies | -11 -10 -9 -9 -8 -8 -------- Run | Yrd Mat Mat Min Mat Gar Total Allies 4 | . . . 4 . . Largest Group 4 | . . . 4 3 . Highest-Rated Group 71 | . . . 71 40 . Highest-Rated Ally 31 | . . . 31 16 . Total Orders . | . . . . . . Ally Attacks 12 | . . . 2 10 . Total Damage 107 | . . . 31 76 . Kills 2 | . . . 1 1 . Allies Corrupted . | . . . . . . Allies Melted . | . . . . . . Intel | -11 -10 -9 -9 -8 -8 ------- Run | Yrd Mat Mat Min Mat Gar Robot Analysis Total 1 | . 1 . . . . Derelict Logs Recovered . | . . . . . . Drone Launches . | . . . . . . Drone Recoveries . | . . . . . . Exploration | -11 -10 -9 -9 -8 -8 ------------- Run | Yrd Mat Mat Min Mat Gar Turns Passed 6660 | 65 385 2395 1777 1795 243 Spaces Moved 2532 | 49 230 1088 565 513 87 Core 16 | 13 . . . . 3 Treads . | . . . . . . Legs 2516 | 36 230 1088 565 513 84 Wheels . | . . . . . . Hover . | . . . . . . Flight . | . . . . . . Fastest Speed 50 | 50 120 190 190 190 192 Average Speed 186 | 106 120 190 190 208 211 Slowest Speed 750 | 120 120 260 190 260 750 Overloaded Moves . | . . . . . . Propulsion Burnouts . | . . . . . . Robots Hopped . | . . . . . . Cave-ins Triggered . | . . . . . . Exploration Rate (%) 55 | 3 52 91 102 56 26 Regions Visited 5 Branch Regions 1 Pre-discovered Areas . | . . . . . . Known Exits Taken 5 | 1 1 1 1 1 . Unknown Exits Taken . | . . . . . . Scrap Searched 3 | . . . 3 . . Spaces Dug 3 | . . 3 . . . Terrain Destroyed 186 | . . 25 . 161 . Melee 3 | . . 3 . . . Projectile 2 | . . . . 2 . AOE 181 | . . 22 . 159 . Terrain Rammed . | . . . . . . Walls Destroyed . | . . . . . . Machines Disabled . | . . . . . . Actions | -11 -10 -9 -9 -8 -8 --------- Run | Yrd Mat Mat Min Mat Gar Total 4003 | 62 285 1228 1231 1073 124 Wait 1061 | . . 12 642 400 7 Move 2528 | 48 229 1087 564 513 87 Hop . | . . . . . . Pick Up 70 | 8 13 22 1 23 3 Fast Attach 1 | . . . 1 . . Attach 41 | 6 7 4 1 19 4 Detach 2 | . 1 . . 1 . Swap 21 | . 3 4 1 13 . Drop 20 | . 4 3 2 11 . Fire 227 | . 28 81 19 86 13 Melee 21 | . . 14 . 7 . Ram . | . . . . . . Kick 1 | . . 1 . . . Crush . | . . . . . . Escape Stasis 10 | . . . . . 10 Rewire . | . . . . . . Trap . | . . . . . . Miscellaneous . | . . . . . . Route ------- -11/Scrapyard -10/Materials (discovered 2 exits: *Mat / *Min) -9/Materials (discovered 4 exits: *Mat x3 / *Min) -9/Mines (discovered 2 exits: *Mat x2) -8/Materials (discovered 2 exits: *Fac / Gar) -8/Garrison History --------- Turn | Location | Event 2 | -11/Scrapyard | Met Revision 17 44 | -11/Scrapyard | Identified exit to Materials 44 | -11/Scrapyard | Discovered exit to Materials (range 12) 66 | -11/Scrapyard | Entered Materials 66 | -10/Materials | Evolved 1 slot: Utility x1 248 | -10/Materials | Identified exit to Mines 248 | -10/Materials | Discovered exit to Mines (range 7) 330 | -10/Materials | Build established: Hacker-Mutant 442 | -10/Materials | Identified exit to Materials 442 | -10/Materials | Discovered exit to Materials (range 9) 451 | -10/Materials | Entered another Materials area 451 | -9/Materials | Evolved 2 slots: Propulsion x1, Utility x1 858 | -9/Materials | Identified exit to Materials 858 | -9/Materials | Discovered exit to Materials (range 16) 1311 | -9/Materials | Identified exit to Mines 1311 | -9/Materials | Discovered exit to Mines (range 12) 1885 | -9/Materials | Discovered exit to Materials (range 14) 2412 | -9/Materials | Discovered exit to Materials (range 9) 2523 | -9/Materials | Core integrity fell below 50% 2846 | -9/Materials | Entered Mines 2848 | -9/Mines | Assisted by bots powering up and referring to "LRC-V3" 2941 | -9/Mines | Discovered exit to Materials (range 9) 3054 | -9/Mines | Discovered exit to Materials (range 12) 3379 | -9/Mines | Found a damaged Exp. Sensor Array with a note attached 3495 | -9/Mines | Received a Mining Laser from a helpful Derelict 3590 | -9/Mines | Found DCF Scrap (12 items) 4623 | -9/Mines | Entered Materials 4623 | -8/Materials | Accompanied by 3 allies 4623 | -8/Materials | Evolved 2 slots: Propulsion x1, Utility x1 4741 | -8/Materials | Lost 3 allies 4794 | -8/Materials | Lost 3 parts (2n1u) 5016 | -8/Materials | Lost 3 parts (2n1u) 5083 | -8/Materials | Identified exit to Factory 5083 | -8/Materials | Discovered exit to Factory (range 6) 6313 | -8/Materials | Garrison activated, responded to threat 6418 | -8/Materials | Identified exit to Garrison 6418 | -8/Materials | Entered Garrison 6564 | -8/Garrison | Triggered checkpoint 6566 | -8/Garrison | Triggered checkpoint 6600 | -8/Garrison | Lost 3 parts (1p2n) 6637 | -8/Garrison | Destroyed 7 combat bots 6642 | -8/Garrison | Core integrity fell below 50% 6656 | -8/Garrison | Core integrity fell below 20% 6661 | -8/Garrison | Destroyed by G-47 Trooper with Particle Gun Last Messages --------------- Acquired Aluminum Leg. Acquired 10 matter. Critical hit (Burn: +37). Acquired 14 matter. Acquired 1 matter. Aluminum Leg destroyed. Titanium Leg destroyed. Critical hit (Burn: +37). Hvy. Particle Gun destroyed. Critical hit (Burn: +37). Hacking Suite destroyed. Critical hit (Burn: +37). Imp. Heat Sink destroyed. Acquired Concussive RPG. Concussive RPG expended. G-47 Trooper knocked back. Knocked back. G-47 Trooper destroyed. G-47 Trooper knocked back. Acquired Concussive RPG. Map ----- +----------------------------------------------------+ | ?????????????????????????????????????????????????? | | ?????????????????????????????????????????????????? | | ?????????????????????????????????????????????????? | | ?????????????????????????????????????????????????? | | ?????????????????????????????????????????????????? | | ?????????????????????????????????????????????????? | | ?????????????????????????????????????????????????? | | ?????????????????????????????????????????????????? | | ?????????????????????????????????????????????????? | | ??????????????????????? ????????????????????????? | | ??????????????????????? ????????????????????????? | | ??????????????????????# #???????????????????????? | | ??????????????????????# #???????????????????????? | | ??????????????????????# #???????????????????????? | | ???????????# ????????# ^#???????????????????????? | | ???????????# ??####### #???????????????????????? | | ???????????# ?# ## #???????????????????????? | | ???????????# ## ## ##??????????????????????? | | ???????????# ####???????????????????? | | ???????????# ????????????????????? | | ???????????# ?????????????????????? | | ???????????# ?# ## #??????????????????????? | | ?????????### ## ## ###????????????????????? | | ?????????# #????????????????????? | | ?????????# % = #????????????????????? | | ?????????# g*[g !@ #????????????????????? | | ?????????# g g g%g ! #????????????????????? | | ??????????## ## =##*==###????????????????????? | | ???????????# ## [ ## [ ############???????????? | | ???????????# == ! #???????????? | | ???????????# %= #???????????? | | ???????????# #???????????? | | ???????????## ## ############# #???????????? | | ????????????# ?# #???????????# #???????????? | | ????????????# ??######???????????# #???????????? | | ????????????#????????????????????# #???"???????? | | ?????????????????????????????????# #?? "???????? | | ?????????????????????????????????# #? #???????? | | ?????????????????????????????????# ## #???????? | | ?????????????????????????????????# #???????? | | ?????????????????????????????????# #???????? | | ?????????????????????????????????# ## #???????? | | ?????????????????????????????????# #?###???????? | | ?????????????????????????????????# #???????????? | | ?????????????????????????????????# #???????????? | | ?????????????????????????????????# #???????????? | | ?????????????????????????????????# #???????????? | | ?????????????????????????????????# #???????????? | | ?????????????????????????????????# #???????????? | | ?????????????????????????????????# ############# | +----------------------------------------------------+ Best States ------------- Heat Dissipation 45 Energy Generation 14 Energy Capacity 280 Matter Stores 300 Matter Capacity 300 Sight Range 16 Terrain Scan Density 10 Armor Coverage 150 Resistance: KI 35 Resistance: TH 35 Resistance: EX 35 Resistance: EM 35 Resistance: I 35 Resistance: S 35 Resistance: P 35 Power Shielding 33 Evasion (%) 55 Targeting Accuracy 5 Offensive Hacking 40 Item Schematics ----------------- None Robot Schematics ------------------ None Fabricated ------------ Nothing Alien Tech Used ----------------- None Achievements -------------- None Challenges ------------ None Game ------ Seed ScanIntegratedSpecial Manual? 0 Play Time 00:34:19 Cumulative 119.7 hours Start 2024.10.03 @ 21:49:00 End 2024.10.03 @ 22:21:11 Sessions 1 Manual Loads 0 Difficulty Explorer Special Mode None Game No. 105 Rogue 77 Adventurer 1 Explorer 27 Win Type - Total 11 Types 9/0/0/2/0/0/0/0/0 Lore% 59 Gallery% 65 Achievement% 63 Wizard Run 0 Options --------- Layout 1 ASCII 0 Keyboard 0 Movement Mouse Keybinds 0 Fullscreen 1 Font 24/Smallcaps Map View 50x40 Zoom Use 0% Tactical HUD 0 Map Filters NONE Filters NONE Steam 1 RUN: 0cc63526-29ab-46b3-bd22-213ba76e0749